Cogmind - Beta 14 *** ADVENTURER MODE // 2024.12.08 @ 09:28:11 Player: Narand Result: Self-destructed Performance ------------- Evolutions (2) 1000 Regions Visited (3) 600 Robots Destroyed (32) 160 Value Destroyed (875) 875 Prototype IDs (0) 0 Alien Tech Used (0) 0 Bonus (0) 0 TOTAL SCORE: 2635 Bonus ------- None Cogmind --------- Core Integrity 537/550 Matter 266/300 Energy 275/275 System Corruption 0% Temperature Cool (0) Movement Walking (190) Ox1 Location -8/Materials Parts ------- > --- POWER (1) -------- Deuterium Engine > --- PROPULSION (2) --- Carbon-fiber Leg Carbon-fiber Leg > --- UTILITY (4) ------ Improved Heat Sink Visual Processing Unit Heavy Armor Plating > --- WEAPON (4) ------- Heavy Particle Cannon Heavy Assault Rifle Heavy Assault Rifle Katana > --- INVENTORY (5) ---- Ion Engine Light Nuclear Core Core Shielding Medium Armor Plating Grenade Launcher Peak State ------------ > --- POWER ------------ Deuterium Engine > --- PROPULSION ------- Carbon-fiber Leg Carbon-fiber Leg > --- UTILITY ---------- Improved Heat Sink Visual Processing Unit Heavy Armor Plating > --- WEAPON ----------- Heavy Particle Cannon Heavy Assault Rifle Heavy Assault Rifle Katana > --- INVENTORY -------- Ion Engine Light Nuclear Core Core Shielding Medium Armor Plating Grenade Launcher [Rating: 30] Favorites ----------- Power Light Nuclear Core Engine Ion Engine Power Core Light Nuclear Core Propulsion Carbon-fiber Leg Treads Light Treads Leg Carbon-fiber Leg Wheel Compact Wheel Utility Visual Processing Unit Device Improved Heat Sink Processor Visual Processing Unit Protection Power Shielding Weapon Heavy Assault Rifle Energy Gun Medium Laser Energy Cannon Beam Cannon Ballistic Gun Heavy Assault Rifle Ballistic Cannon Light Cannon Launcher Grenade Launcher Special Weapon Mining Laser Slashing Weapon Katana Build | -11 -10 -9 -8 ------- Run | Yrd Mat Mat Mat Slots Evolved 4 | . . 2 2 Power . | . . . . Propulsion . | . . . . Utility 2 | . . 1 1 Weapon 2 | . . 1 1 Parts Attached 52 | 7 11 23 11 Power 5 | 1 1 2 1 Engine 2 | 1 . . 1 Core 3 | . 1 2 . Reactor . | . . . . Propulsion 7 | 4 . 3 . Treads 2 | 2 . . . Leg 3 | . . 3 . Wheel 2 | 2 . . . Hover . | . . . . Flight . | . . . . Utility 17 | . 5 7 5 Device 4 | . 2 2 . Storage . | . . . . Processor 2 | . 2 . . Hackware . | . . . . Protection 11 | . 1 5 5 Artifact . | . . . . Weapon 23 | 2 5 11 5 Energy Gun 4 | 1 1 2 . Energy Cannon 3 | . 1 . 2 Ballistic Gun 6 | 1 1 3 1 Ballistic Cannon 2 | . 1 1 . Launcher 4 | . . 2 2 Special Weapon 2 | . 1 1 . Impact Weapon . | . . . . Slashing Weapon 2 | . . 2 . Piercing Weapon . | . . . . Special Melee Weapon . | . . . . Unidentified Prototypes . | . . . . Parts Lost . | . . . . Power . | . . . . Propulsion . | . . . . Utility . | . . . . Weapon . | . . . . Highest Loss Streak . | . . . . To Critical Strikes . | . . . . Average Slot Usage (%) 93 | . 91 96 91 Engine 5 | . 10 . 8 Core 6 | . 3 10 . Treads 11 | . 28 . . Leg 12 | . . 21 18 Device 9 | . 7 12 9 Processor 9 | . 6 11 9 Protection 8 | . 6 9 11 Energy Gun 3 | . 5 2 . Energy Cannon 2 | . 5 . 1 Ballistic Gun 14 | . 10 17 17 Ballistic Cannon 3 | . 4 4 . Launcher 1 | . . 1 6 Slashing Weapon 3 | . . 5 9 Peak Build Rating 30 | 5 12 23 30 Average Rating 15 | 3 7 20 27 On Entrance 10 | . 5 12 23 Naked Turns . | . . . . Heaviest Build 39 | 9 12 21 39 Greatest Support 40 | 40 40 40 30 Greatest Overweight (x) 4 | . . 4 1 Average Overweight (x) . | . . . . Largest Inventory Capacity 5 | 5 5 5 5 Average Capacity 5 | 5 5 5 5 Most Carried 5 | 2 5 5 5 Average Carried 3 | . 3 4 4 Final Capacity 5 | 5 5 5 5 Final Carried 5 | 1 4 5 5 Class Distribution -------------------- 50% | Mutant 27% | Scavenger-Mutant 15% | Scavenger-Tank 6% | Tank Dominant Class ---------------- Mutant | -10/Materials Scavenger-Mutant | -9/Materials Tank | -8/Materials Resources | -11 -10 -9 -8 ----------- Run | Yrd Mat Mat Mat Matter Collected 1063 | 147 277 535 104 Remotely . | . . . . Salvage Created 1140 | . 224 785 131 Parts 84 | . 22 56 6 Haulers Intercepted 1 | . . . 1 Recyclers Shooed 1 | . . 1 . Parts Field Recycled . | . . . . Retrieved Matter . | . . . . Parts Self-Destructed . | . . . . Prevented . | . . . . Kills | -11 -10 -9 -8 ------- Run | Yrd Mat Mat Mat Combat Hostiles Destroyed 22 | . 6 15 1 Guns 15 | . 3 12 . Cannons 7 | . 3 3 1 Classes Destroyed 10 | . 4 5 1 Worker 2 | . . 1 1 Builder 2 | . 1 1 . Hauler 1 | . . . 1 Recycler 1 | . . 1 . Operator 1 | . . 1 . Watcher 3 | . 1 2 . Swarmer 3 | . 3 . . Grunt 11 | . 3 8 . Duelist 2 | . . 2 . Sentry 6 | . . 5 1 Best Kill Streak 5 | . 4 5 2 Combat Bots Only 4 | . 3 4 1 Max Kills in Single Turn 2 | . 2 1 1 Gunslinging 1 | . 1 . . Exploded . | . . . . Melee . | . . . . Uniques/NPCs Destroyed . | . . . . Combat | -11 -10 -9 -8 -------- Run | Yrd Mat Mat Mat Hostile Shots Fired 64 | . 12 48 4 Missed 19 | . 5 13 1 Damage Taken 480 | . 67 377 36 Core 87 | . 15 59 13 Absorbed by Shields . | . . . . Redirected to Shielding 6 | . . 6 . Ignored by Resistances 138 | . 20 108 10 Regen/Repaired (Parts) 157 | . . 157 . Core Remaining (%) 93 | 100 94 85 . Volleys Fired 68 | . 21 44 3 Largest 3 | . 2 3 3 Hottest 121 | . 100 114 121 Shots Fired 147 | . 35 103 9 Gun 90 | . 12 72 6 Cannon 46 | . 16 27 3 Launcher 3 | . . 3 . Special 8 | . 7 1 . Kinetic 108 | . 16 86 6 Thermal 36 | . 19 14 3 Explosive 3 | . . 3 . Electromagnetic . | . . . . Robot Hit Streak 29 | . 4 29 3 Robot Miss Streak 2 | . 1 2 2 Penetration Max . | . . . . Secondary Targets 2 | . 1 1 . Max Gunslinging Chain 1 | . 1 1 . Shots Hit Robots 95 | . 15 74 6 Core Hits 42 | . 9 30 3 Critical Kills . | . . . . Critical Parts Destroyed . | . . . . Critical Strikes . | . . . . Melee Attacks 8 | . . 6 2 Impact . | . . . . Slashing 8 | . . 6 2 Piercing . | . . . . Sneak Attacks 4 | . . 2 2 Combat Hostiles . | . . . . Follow-up Attacks . | . . . . Damage Inflicted 1658 | . 225 1246 187 Guns 954 | . 85 819 50 Cannons 425 | . 139 261 25 Explosions 21 | . . 21 . Melee 240 | . . 128 112 Ramming 18 | . 1 17 . Kinetic 1081 | . 82 949 50 Thermal 298 | . 142 131 25 Explosive 21 | . . 21 . Electromagnetic . | . . . . Impact . | . . . . Slashing 240 | . . 128 112 Piercing . | . . . . Highest Corruption 1 | . 1 . . Average Corruption 1 | . 1 . . Corruption Purged . | . . . . Corruption Blocked . | . . . . Effects 5 | . 5 . . Message Errors 1 | . 1 . . Matter Fused 2 | . 2 . . Heat Flow Errors 1 | . 1 . . Energy Discharges 1 | . 1 . . Overload Shots . | . . . . Overflow Damage 34 | . . 34 . Projectiles . | . . . . Explosions . | . . . . Melee 34 | . . 34 . Knockbacks 4 | . 1 3 . Impact . | . . . . Kinetic 4 | . 1 3 . Secondary . | . . . . Self-Inflicted Damage . | . . . . Shots . | . . . . Rammed 1 | . 1 . . Targets Rammed 4 | . 1 3 . Kicked 3 | . . 3 . Crushed . | . . . . Highest Temperature 192 | . 192 66 81 Average Temperature 44 | . 59 25 43 Received Heat Transfer 216 | . 39 159 18 Siege Activations . | . . . . Robots Corrupted 1 | . . 1 . Combat Hostiles . | . . . . Parts Fried 2 | . . 2 . Impact Corruptions 1 | . . 1 . Robots Melted . | . . . . Combat Hostiles . | . . . . Parts Melted . | . . . . Heat Transferred 703 | . 333 333 37 Parts Sabotaged . | . . . . Parts Stolen . | . . . . Parts Stripped . | . . . . Power Chain Reactions . | . . . . Alert | -11 -10 -9 -8 ------- Run | Yrd Mat Mat Mat Peak Influence 237 | . 114 237 106 Initial 43 | . . . 43 Average 84 | . 43 130 54 Maximum Alert Level 1 | . . 1 . Low Security (%) 85 | 100 100 68 100 Level 1 14 | . . 31 . Level 2 . | . . . . Level 3 . | . . . . Level 4 . | . . . . Level 5 . | . . . . High Security . | . . . . Max Security . | . . . . Squads Dispatched 2 | . 1 1 . Investigation 1 | . 1 . . Extermination . | . . . . Reinforcement 1 | . . 1 . Assault . | . . . . Garrison . | . . . . Intercept . | . . . . Searches Triggered . | . . . . Construction Impeded . | . . . . Haulers Reinforced . | . . . . Active Scanning Responses . | . . . . Cargo Convoy Interrupts . | . . . . Stealth | -11 -10 -9 -8 --------- Run | Yrd Mat Mat Mat Distress Signals 5 | . 2 3 . Communications Jammed . | . . . . Distress Signals . | . . . . Times Spotted 35 | . 8 25 2 Peak Tracking Total 6 | . 4 6 1 Tactical Retreats 2 | . 1 1 . Traps | -11 -10 -9 -8 ------- Run | Yrd Mat Mat Mat Traps Triggered 1 | . 1 . . Indirectly . | . . . . Trap Hack Attempts . | . . . . Triggered . | . . . . Disarmed . | . . . . Reprogrammed . | . . . . Reused . | . . . . Traps Extracted . | . . . . Installed . | . . . . Triggered . | . . . . Machines | -11 -10 -9 -8 ---------- Run | Yrd Mat Mat Mat Machines Disabled 1 | . 1 . . Max in Single Turn 1 | . 1 . . Machines Repaired . | . . . . Machines Dismantled . | . . . . Machines Sabotaged . | . . . . Overloaded Fab Kills . | . . . . Hacking | -11 -10 -9 -8 --------- Run | Yrd Mat Mat Mat Machines Accessed 10 | . 6 2 2 Terminals 8 | . 5 1 2 Fabricators . | . . . . Repair Stations 1 | . . 1 . Recycling Units 1 | . 1 . . Scanalyzers . | . . . . Garrison Access . | . . . . Total Hacks 36 | . 15 16 5 Successful 30 | . 11 14 5 Failed 6 | . 4 2 . Catastrophic 2 | . 2 . . Database Lockouts . | . . . . Manual 1 | . 1 . . Terminals 17 | . 9 3 5 Fabricators . | . . . . Repair Stations 13 | . . 13 . Recycling Units 6 | . 6 . . Scanalyzers . | . . . . Garrison Access . | . . . . Terminal Hacks 11 | . 5 1 5 Record 6 | . 2 . 4 Recall Investigation 1 | . 1 . . Zone Layout 4 | . 2 1 1 Fabricator Hacks . | . . . . Repair Station Hacks 13 | . . 13 . Scan Component 7 | . . 7 . Repair 6 | . . 6 . Recycling Unit Hacks 6 | . 6 . . Recycle Component 1 | . 1 . . Process 2 | . 2 . . Report Inventory 1 | . 1 . . Retrieve Matter 1 | . 1 . . Retrieve Components 1 | . 1 . . Scanalyzer . | . . . . Garrison Access Hacks . | . . . . Unauthorized Hacks . | . . . . Terminals . | . . . . Fabricators . | . . . . Repair Stations . | . . . . Recycling Units . | . . . . Scanalyzers . | . . . . Garrison Access . | . . . . Data Cores Recovered . | . . . . Used . | . . . . Hacking Detections 4 | . 3 . 1 Full Trace Events 2 | . 2 . . Feedback Events 1 | . 1 . . Corruption 1 | . 1 . . Feedback Blocked . | . . . . Robot Schematics Acquired . | . . . . Robots Built . | . . . . Authchips . | . . . . Time . | . . . . Total Robot Build Rating . | . . . . Part Schematics Acquired . | . . . . Parts Built . | . . . . Authchips . | . . . . Time . | . . . . Total Part Build Rating . | . . . . Parts Repaired 6 | . . 6 . Time 198 | . . 198 . Parts Recycled 1 | . 1 . . Recycled Matter 21 | . 21 . . Retrieved Matter 21 | . 21 . . Retrieved Components . | . . . . Parts Scanalyzed . | . . . . Part Schematics Acquired . | . . . . Parts Damaged . | . . . . Bothacking | -11 -10 -9 -8 ------------ Run | Yrd Mat Mat Mat Used RIF Installer . | . . . . Robots Hacked . | . . . . Non-combat . | . . . . Combat . | . . . . Robot Hacks Applied . | . . . . Relay Couplers Released . | . . . . Fabnet Peak Effective % . | . . . . Robots Rewired . | . . . . Allies Hacked . | . . . . Hacks Repelled . | . . . . Allies | -11 -10 -9 -8 -------- Run | Yrd Mat Mat Mat Total Allies . | . . . . Largest Group . | . . . . Highest-Rated Group . | . . . . Highest-Rated Ally . | . . . . Total Orders . | . . . . Ally Attacks . | . . . . Total Damage . | . . . . Kills . | . . . . Allies Corrupted . | . . . . Allies Melted . | . . . . Intel | -11 -10 -9 -8 ------- Run | Yrd Mat Mat Mat Robot Analysis Total . | . . . . Derelict Logs Recovered . | . . . . Drone Launches . | . . . . Drone Recoveries . | . . . . Exploration | -11 -10 -9 -8 ------------- Run | Yrd Mat Mat Mat Turns Passed 2277 | 78 855 1086 258 Spaces Moved 1136 | 52 424 540 120 Core 6 | 5 . 1 . Treads 467 | 26 424 17 . Legs 642 | . . 522 120 Wheels 21 | 21 . . . Hover . | . . . . Flight . | . . . . Fastest Speed 50 | 50 160 120 120 Average Speed 139 | 125 160 121 156 Slowest Speed 250 | 160 160 250 190 Overloaded Moves . | . . . . Propulsion Burnouts . | . . . . Robots Hopped . | . . . . Cave-ins Triggered . | . . . . Exploration Rate (%) 31 | 4 62 45 15 Regions Visited 3 Branch Regions . Pre-discovered Areas . | . . . . Known Exits Taken . | . . . . Unknown Exits Taken 3 | 1 1 1 . Scrap Searched . | . . . . Spaces Dug 12 | . 7 5 . Terrain Destroyed 37 | . 7 28 2 Melee 4 | . . 4 . Projectile 10 | . 7 1 2 AOE 23 | . . 23 . Terrain Rammed . | . . . . Walls Destroyed . | . . . . Machines Disabled . | . . . . Actions | -11 -10 -9 -8 --------- Run | Yrd Mat Mat Mat Total 1667 | 64 553 867 183 Wait 334 | 1 75 225 33 Move 1133 | 51 423 539 120 Hop . | . . . . Pick Up 22 | 3 9 9 1 Fast Attach 33 | 5 7 14 7 Attach 12 | 2 2 4 4 Detach 13 | . 3 4 6 Swap 7 | . 2 5 . Drop 33 | 2 10 14 7 Fire 68 | . 21 44 3 Melee 8 | . . 6 2 Ram . | . . . . Kick 3 | . . 3 . Crush 1 | . 1 . . Escape Stasis . | . . . . Rewire . | . . . . Trap . | . . . . Miscellaneous . | . . . . Route ------- -11/Scrapyard -10/Materials (discovered 3 exits: *Mat x2 / [*Min]) -9/Materials -8/Materials (discovered 1 exit: [*Sto]) History --------- Turn | Location | Event 24 | -11/Scrapyard | Discovered new exit (range 16) 79 | -11/Scrapyard | Entered Materials 303 | -10/Materials | Build established: Mutant 503 | -10/Materials | Discovered new exit (range 14) 587 | -10/Materials | Discovered new exit (range 8) 745 | -10/Materials | Discovered new exit (range 9) 934 | -10/Materials | Entered another Materials area 934 | -9/Materials | Evolved 2 slots: Utility x1, Weapon x1 1176 | -9/Materials | Repaired Lgt. Nuclear Core 1212 | -9/Materials | Repaired Lgt. Cannon 1603 | -9/Materials | Repaired Med. Armor Plating 1643 | -9/Materials | Repaired Imp. Heat Sink 1670 | -9/Materials | Repaired Core Shielding 1709 | -9/Materials | Repaired Lgt. Nuclear Core 1910 | -9/Materials | Discovered new exit (range 11) 2013 | -9/Materials | Build established: Scavenger-Mutant 2020 | -9/Materials | Entered another Materials area 2020 | -8/Materials | Evolved 2 slots: Utility x1, Weapon x1 2023 | -8/Materials | Discovered new exit (range 14) 2278 | -8/Materials | Self-destructed Last Messages --------------- 02178_ Sneak attack on A-02 Transporter. 02178_ A-02 Transporter destroyed. 02180_ K-01 Serf collects debris. 02181_ Sneak attack on K-01 Serf. 02181_ K-01 Serf destroyed. 02183_ Acquired 44 matter. 02193_ R-06 Scavenger collects Prototype Flight Unit. 02210_ Dropped Mni. Grenade Launcher. 02232_ Acquired Hvy. Particle Cannon. 02235_ Connecting with Terminal... >>Layout(Zone) Retrieving Zone 2O layout... Downloaded map data. 02249_ Y-45 Defender destroyed. 02253_ Dropped Hvy. Assault Rifle. 02265_ Acquired Hvy. Assault Rifle. 02266_ Acquired 60 matter. 02268_ Dropped Hvy. Particle Cannon. 02276_ Acquired Hvy. Particle Cannon. Map ----- +----------------------------------------------------+ | ?????????????????????????????# | | ?????????????????????????????# # | | ?????????????????????????????# # | | ?????????????????????????????# # | | ?????????????????????????????# # | | ?????????????????????????????# + | | ?????????????????????????????# # | | ???????????????????########### # | | ??????????########## ## # | | ??????????# # """ # | | ??????????# """ # """"" # | | ??????????# "R # """"" + T | | ??????????# """ # """"" # | | ??????????# "" # """ # | | ??????????# # ## # | | ??????????# ! # ## # | | ??????????# # ] ## # | | ??######??# ########### # | | ??# #######+###############% # | | ??# ] =!== = ! # | | ??# T #############* # | | ??# ### #### ##???????????##### | | ??## ####+###;+#????????????????? | | ???# # ##???????????????? | | ???# [+ /= ;#???????????????? | | ???# # @[ ] ##???????????????? | | ???# #[ ]! "T" #???????????????? | | ???# ############???????????????? | | ???# ########???????????????????? | | ???# + #???????????????????? | | ???# # #???????????????????? | | ???# # ""#???????????????????? | | ???#### T"#???????????????????? | | ??????# ""#???????????????????? | | ??????# #???????????????????? | | ??????########???????????????????? | | ?????????????????????????????????? | | ?????????????????????????????????? | | | | | | | | | | | | | | | | | | | | | | | | | +----------------------------------------------------+ Best States ------------- Heat Dissipation 45 Energy Generation 14 Energy Capacity 275 Matter Stores 300 Matter Capacity 300 Sight Range 18 Terrain Scan Density 10 ECM Strength 1 Armor Coverage 600 Resistance: KI 20 Resistance: TH 20 Resistance: EX 20 Resistance: EM 20 Resistance: I 20 Resistance: S 20 Resistance: P 20 Core Shielding 20 Power Shielding 33 Utility Shielding 33 Evasion (%) 55 Recoil Reduction 2 Offensive Hacking 10 Item Schematics ----------------- None Robot Schematics ------------------ None Fabricated ------------ Nothing Alien Tech Used ----------------- None Achievements -------------- Power Corrupts Challenges ------------ None Game ------ Seed TransmissionTowerTorch Manual? 0 Play Time 00:39:42 Cumulative 5.6 hours Start 2024.08.12 @ 16:12:09 End 2024.12.08 @ 09:28:11 Sessions 3 Manual Loads 0 Difficulty Adventurer Special Mode None Game No. 8 Rogue 0 Adventurer 8 Explorer 0 Win Type - Total 0 Types 0/0/0/0/0/0/0/0/0 Lore% 1 Gallery% 10 Achievement% 11 Wizard Run 0 Options --------- Layout 1 ASCII 0 Keyboard 0 Movement Mouse Keybinds 0 Fullscreen 1 Font 24/Smallcaps Map View 50x35 Zoom Use 0% Tactical HUD 1 Map Filters NONE Filters NONE Steam 1 RUN: cd20e521-cf90-4160-9d24-513c4a02d45b